bitfinex-derivatives/quotes_SOLF0:USTF0_20260314
["timestamp","ask_amount","ask_price","bid_price","bid_amount"]
[1773474374895,9.12211927,87.257,87.205,6.42631391]
[1773474375102,9.12211927,87.256,87.205,6.42631391]
[1773474375403,9.12211927,87.255,87.207,6.42631391]
[1773474375703,9.12211927,87.254,87.207,6.42631391]
[1773474375900,9.12211927,87.253,87.207,6.42631391]
[1773474376102,9.12211927,87.252,87.207,6.42631391]
[1773474376302,9.12211927,87.251,87.207,6.42631391]
[1773474376501,9.12211927,87.25,87.207,6.42631391]
[1773474376700,9.12211927,87.249,87.207,6.42631391]
[1773474376900,10.312,87.258,87.207,6.42631391]
[1773474377099,9.11936758,87.257,87.207,6.42631391]
[1773474377299,9.11936758,87.257,87.152,34.38]
[1773474377300,10.311,87.268,87.211,6.32992624]
[1773474377499,9.11812617,87.267,87.211,6.32992624]
[1773474377705,9.11812617,87.266,87.221,6.32992624]
[1773474377905,10.31,87.278,87.221,6.32992624]
[1773474378199,9.11938523,87.277,87.221,6.32992624]
[1773474378506,10.309,87.288,87.231,6.3298213]
[1773474378704,9.11276045,87.287,87.231,6.3298213]
[1773474378999,9.11276045,87.286,87.231,6.3298213]
[1773474379204,9.11276045,87.285,87.231,6.3298213]
[1773474379501,10.309,87.288,87.234,6.3230791]
[1773474379705,9.10624767,87.287,87.234,6.3230791]
[1773474380007,10.309,87.288,87.234,6.3230791]
[1773474380702,36.08,87.313,87.241,6.24753334]
[1773474380703,12.20546803,87.31,87.241,6.24753334]
[1773474380901,9.09919245,87.309,87.251,6.24753334]
[1773474381102,9.09919245,87.308,87.251,6.24753334]
[1773474381305,9.09919245,87.307,87.251,6.24753334]
[1773474381606,10.306,87.309,87.252,6.24719303]
[1773474381807,9.09026477,87.308,87.252,6.24719303]
[1773474382010,9.09026477,87.307,87.252,6.24719303]
[1773474382209,10.306,87.307,87.252,6.24719303]
[1773474383009,3.10627558,87.3,87.252,6.24719303]
[1773474389915,10.305,87.316,87.255,6.24217944]
[1773474390116,3.10627558,87.31,87.255,6.24217944]
[1773474391514,3.10627558,87.31,87.256,10.312]
[1773474391714,3.10627558,87.31,87.257,6.24215329]
[1773474392918,3.10627558,87.31,87.26,6.24163936]
[1773474396325,3.10627558,87.3,87.26,6.24163936]
[1773474396528,3.10627558,87.29,87.26,6.24163936]
[1773474398324,3.10627558,87.28,87.241,6.24547293]
[1773474400629,13.41627558,87.28,87.241,6.24547293]
[1773474401528,13.41175669,87.28,87.241,6.24547293]
[1773474407031,10.311,87.273,87.241,6.24547293]
[1773474411533,3.10175669,87.28,87.241,6.24547293]
[1773474416432,3.10175669,87.3,87.241,6.24547293]
[1773474416635,3.10175669,87.31,87.251,6.28198578]
[1773474416934,9.06601773,87.309,87.251,6.28198578]
[1773474417134,9.06601773,87.308,87.251,6.28198578]
[1773474417337,9.06601773,87.307,87.251,6.28198578]
[1773474417537,10.307,87.298,87.251,6.28198578]
[1773474419239,9.08935011,87.297,87.251,6.28198578]
[1773474419539,9.08935011,87.296,87.251,6.28198578]
[1773474419733,9.08935011,87.295,87.251,6.28198578]
[1773474419930,10.307,87.298,87.251,6.28198578]
[1773474420129,9.08935011,87.297,87.251,6.28198578]
[1773474420335,9.08935011,87.296,87.251,6.28198578]
[1773474420535,9.08935011,87.295,87.251,6.28198578]
[1773474420833,3.10175669,87.29,87.251,6.28198578]
[1773474421035,9.08935011,87.289,87.251,6.28198578]
[1773474421234,9.08935011,87.288,87.251,6.28198578]
[1773474421536,9.08935011,87.287,87.251,6.28198578]
[1773474421838,9.08935011,87.286,87.251,6.28198578]
[1773474422029,3.10175669,87.29,87.251,6.28198578]
[1773474422236,9.10865949,87.289,87.251,6.28198578]
[1773474422527,9.10865949,87.288,87.251,6.28198578]
[1773474422732,9.10865949,87.287,87.251,6.28198578]
[1773474423030,9.10865949,87.286,87.251,6.28198578]
[1773474423334,9.10865949,87.285,87.251,6.28198578]
[1773474423638,9.10865949,87.284,87.251,6.28198578]
[1773474423938,9.10865949,87.283,87.251,6.28198578]
[1773474424135,10.309,87.289,87.251,6.28198578]
[1773474424334,9.11177555,87.288,87.251,6.28198578]
[1773474424529,9.11177555,87.287,87.251,6.28198578]
[1773474424732,9.11177555,87.286,87.251,6.28198578]
[1773474424933,9.11177555,87.285,87.251,6.28198578]
[1773474425238,9.11177555,87.284,87.251,6.28198578]
[1773474425440,9.11177555,87.283,87.251,6.28198578]
[1773474425635,10.309,87.289,87.251,6.28198578]
[1773474425839,9.11234568,87.288,87.251,6.28198578]
[1773474426136,9.11234568,87.287,87.251,6.28198578]
[1773474426337,9.11234568,87.286,87.251,6.28198578]
[1773474426537,9.11234568,87.285,87.251,6.28198578]
[1773474426737,9.11234568,87.284,87.251,6.28198578]
[1773474427034,10.309,87.289,87.251,6.28198578]
[1773474427336,9.11214581,87.288,87.251,6.28198578]
[1773474427538,9.11214581,87.287,87.251,6.28198578]
[1773474427740,9.11214581,87.286,87.251,6.28198578]
[1773474427938,9.11214581,87.285,87.251,6.28198578]
[1773474428136,9.11214581,87.284,87.251,6.28198578]
[1773474428341,10.309,87.289,87.251,6.28198578]
[1773474428540,9.11242231,87.288,87.251,6.28198578]
[1773474428841,9.11242231,87.287,87.251,6.28198578]
[1773474429035,9.11242231,87.286,87.251,6.28198578]
[1773474429234,9.11242231,87.285,87.251,6.28198578]
[1773474429433,10.309,87.289,87.251,6.28198578]
[1773474429641,9.11245855,87.288,87.251,6.28198578]
[1773474429836,9.11245855,87.287,87.251,6.28198578]
[1773474430036,9.11245855,87.286,87.251,6.28198578]
[1773474430242,9.11245855,87.285,87.251,6.28198578]
[1773474430444,10.309,87.289,87.251,6.28198578]
[1773474430644,9.11249934,87.288,87.251,6.28198578]
[1773474430844,9.11249934,87.287,87.251,6.28198578]
[1773474431145,9.11249934,87.286,87.251,6.28198578]
[1773474431446,9.11249934,87.285,87.251,6.28198578]
[1773474431744,10.309,87.289,87.251,6.28198578]
[1773474431934,9.11254583,87.288,87.251,6.28198578]
[1773474432135,9.11254583,87.287,87.251,6.28198578]
[1773474432338,9.11254583,87.286,87.251,6.28198578]
[1773474432544,9.11254583,87.285,87.251,6.28198578]
[1773474432745,10.309,87.289,87.251,6.28198578]
[1773474432946,9.11259782,87.288,87.251,6.28198578]
[1773474433141,9.11259782,87.287,87.251,6.28198578]
[1773474433342,9.11259782,87.286,87.251,6.28198578]
[1773474433542,9.11259782,87.285,87.251,6.28198578]
[1773474433739,10.309,87.289,87.251,6.28198578]
[1773474433939,9.11265485,87.288,87.251,6.28198578]
[1773474434138,9.11265485,87.287,87.251,6.28198578]
[1773474434441,9.05265485,87.286,87.251,6.28198578]
[1773474434639,10.309,87.289,87.251,6.28198578]
[1773474444355,10.68537262,87.311,87.261,6.20518613]
[1773474444551,10.68537262,87.318,87.261,6.20518613]
[1773474444751,10.68537262,87.327,87.271,6.20518613]
[1773474445251,10.68537262,87.329,87.272,6.20518613]
[1773474445555,3.10175669,87.32,87.272,6.20518613]
[1773474446451,9.1110743,87.319,87.272,6.20518613]
[1773474446752,9.1110743,87.318,87.272,6.20518613]
[1773474446958,9.1110743,87.317,87.272,6.20518613]
[1773474447255,9.1110743,87.316,87.272,6.20518613]
[1773474447454,9.1110743,87.315,87.272,6.20518613]
[1773474447654,9.1110743,87.314,87.272,6.14518613]
[1773474447857,3.10175669,87.32,87.272,6.14518613]
[1773474447858,9.1110743,87.313,87.272,6.14518613]
[1773474448059,9.1110743,87.312,87.272,6.14518613]
[1773474448248,3.10175669,87.32,87.272,6.14518613]
[1773474448555,10.303,87.336,87.274,10.31]
[1773474448751,9.10428644,87.335,87.274,10.31]
[1773474448951,9.10428644,87.334,87.274,10.31]
[1773474449150,9.10428644,87.333,87.274,10.31]
[1773474449354,9.10428644,87.332,87.274,10.31]
[1773474449653,9.10428644,87.331,87.279,6.13392125]
[1773474449853,9.10428644,87.33,87.279,6.13392125]
[1773474450051,9.10428644,87.329,87.279,6.13392125]
[1773474450356,9.10428644,87.328,87.279,6.13392125]
[1773474450556,9.10428644,87.327,87.279,6.13392125]
[1773474450757,10.303,87.333,87.279,6.13392125]
[1773474450958,9.09599043,87.332,87.279,6.13392125]
[1773474451159,9.09599043,87.331,87.279,6.13392125]
[1773474451362,10.303,87.333,87.279,6.13392125]
[1773474451363,9.09599043,87.33,87.279,6.13392125]
[1773474451556,9.09599043,87.329,87.279,6.13392125]
[1773474451757,9.09599043,87.328,87.279,6.13392125]
[1773474452058,10.303,87.333,87.279,6.13392125]
[1773474452260,9.07777563,87.332,87.279,6.13392125]
[1773474452459,9.07777563,87.331,87.279,6.13392125]
[1773474452658,9.07777563,87.33,87.279,6.13392125]
[1773474452859,9.07777563,87.329,87.279,6.13392125]
[1773474453060,10.303,87.333,87.279,6.13392125]
[1773474453258,9.07522234,87.332,87.279,6.13392125]
[1773474453460,9.07522234,87.331,87.279,6.13392125]
[1773474453762,12.17697903,87.33,87.279,6.13392125]
[1773474453967,3.10175669,87.33,87.279,6.13392125]
[1773474454159,3.10175669,87.33,87.285,6.13534954]
[1773474458961,3.10175669,87.33,87.288,6.13512195]
[1773474459166,10.303,87.333,87.288,6.13512195]
[1773474460165,3.10175669,87.33,87.288,6.13512195]
[1773474461568,3.09791794,87.33,87.29,6.11774462]
[1773474479073,10.303,87.333,87.29,6.11774462]
[1773474480683,3.09791794,87.33,87.29,6.11774462]
[1773474481576,3.09791794,87.32,87.28,6.13409303]
[1773474481777,3.09791794,87.3,87.251,6.13409303]
[1773474482082,3.09791794,87.3,87.253,6.13409303]
[1773474483178,3.09791794,87.29,87.253,6.13409303]
[1773474491388,13.40491794,87.3,87.253,6.13409303]
[1773474496688,3.09791794,87.29,87.253,6.13409303]
[1773474501299,3.09791794,87.3,87.253,6.13409303]
[1773474502492,3.09791794,87.28,87.244,6.16123148]
[1773474505805,3.09791794,87.29,87.244,6.16123148]
[1773474506705,3.09791794,87.29,87.247,6.1854046]
[1773474513208,10.309,87.289,87.247,6.1854046]
[1773474520715,3.09791794,87.28,87.247,6.1854046]
[1773474523614,3.10154588,87.28,87.247,6.1854046]
[1773474525118,10.309,87.289,87.247,6.1854046]
[1773474525415,9.09062487,87.288,87.247,6.1854046]
[1773474525613,9.09062487,87.287,87.247,6.1854046]
[1773474525916,9.09062487,87.286,87.247,6.1854046]
[1773474526116,10.309,87.289,87.247,6.1854046]
[1773474526117,9.09062487,87.285,87.247,6.1854046]
[1773474526319,9.09062487,87.284,87.247,6.1854046]
[1773474526508,9.09062487,87.283,87.247,6.1854046]
[1773474526709,10.309,87.289,87.247,6.1854046]
[1773474527016,9.09766676,87.288,87.247,6.1854046]
[1773474527219,9.09766676,87.287,87.247,6.1854046]
[1773474527518,9.09766676,87.286,87.247,6.1854046]
[1773474527717,9.09766676,87.285,87.247,6.1854046]
[1773474527918,9.09766676,87.284,87.247,6.1854046]
[1773474528114,9.09766676,87.283,87.247,6.1854046]
[1773474528316,9.09766676,87.282,87.247,6.1854046]
[1773474528517,10.309,87.289,87.247,6.1854046]
[1773474528818,9.09896136,87.288,87.247,6.1854046]
[1773474529018,9.09896136,87.287,87.247,6.1854046]
[1773474529318,10.31,87.281,87.247,6.1854046]
[1773474533122,9.10070797,87.28,87.247,6.1854046]
[1773474533327,10.31,87.281,87.247,6.1854046]
[1773474533525,9.10070797,87.28,87.247,6.1854046]
[1773474533721,10.31,87.281,87.247,6.1854046]
[1773474534024,9.10068687,87.28,87.247,6.1854046]
[1773474534321,10.309,87.289,87.247,6.1854046]
[1773474534525,9.10180224,87.288,87.247,6.1854046]
[1773474534724,9.10180224,87.287,87.247,6.1854046]
[1773474534925,9.10180224,87.286,87.247,6.1854046]
[1773474535124,9.10180224,87.285,87.247,6.1854046]
[1773474535325,9.10180224,87.284,87.247,6.1854046]
[1773474535623,10.309,87.289,87.247,6.1854046]
[1773474535624,9.10180224,87.283,87.247,6.1854046]
[1773474535820,9.10180224,87.282,87.247,6.1854046]
[1773474536020,9.10180224,87.281,87.247,6.1854046]
[1773474536219,9.10180224,87.28,87.247,6.1854046]
[1773474536420,10.309,87.289,87.247,6.1854046]
[1773474536627,9.10397124,87.288,87.247,6.1854046]
[1773474536818,9.10397124,87.287,87.247,6.1854046]
[1773474537018,9.10397124,87.286,87.247,6.1854046]
[1773474537222,9.10397124,87.285,87.247,6.1854046]
[1773474537426,9.10397124,87.284,87.247,6.1854046]
[1773474537627,9.10397124,87.283,87.247,6.1854046]
[1773474537821,9.10397124,87.282,87.247,6.1854046]
[1773474538026,9.10397124,87.281,87.247,6.1854046]
[1773474538327,9.10397124,87.28,87.247,6.1854046]
[1773474538626,9.10397124,87.279,87.247,6.1854046]
[1773474538822,9.1082011,87.278,87.247,6.1854046]
[1773474539131,10.309,87.289,87.247,6.1854046]
[1773474539319,9.10941792,87.288,87.247,6.1854046]
[1773474539626,9.10941792,87.287,87.247,6.1854046]
[1773474539822,9.10941792,87.286,87.247,6.1854046]
[1773474540028,9.10941792,87.285,87.247,6.1854046]
[1773474540227,9.10941792,87.284,87.247,6.1854046]
[1773474540428,9.10941792,87.283,87.247,6.1854046]
[1773474540726,9.10941792,87.282,87.247,6.1854046]
[1773474540928,9.10941792,87.281,87.247,6.1854046]
[1773474541123,9.10941792,87.28,87.247,6.1854046]
[1773474541329,9.10941792,87.279,87.247,6.1854046]
[1773474541524,10.309,87.289,87.247,6.1854046]
[1773474541726,9.11197905,87.288,87.247,6.1854046]
[1773474542029,9.11197905,87.287,87.247,6.1854046]
[1773474542328,9.11197905,87.286,87.247,6.1854046]
[1773474542630,9.11197905,87.285,87.247,6.1854046]
[1773474542827,9.11197905,87.284,87.247,6.1854046]
[1773474543126,9.11197905,87.283,87.247,6.1854046]
[1773474543326,9.11197905,87.282,87.247,6.1854046]
[1773474543522,9.11197905,87.281,87.247,6.1854046]
[1773474543719,10.309,87.289,87.247,6.1854046]
[1773474543929,9.11296358,87.288,87.247,6.1854046]
[1773474544130,9.11296358,87.287,87.247,6.1854046]
[1773474544332,9.11296358,87.286,87.247,6.1854046]
[1773474544625,9.11296358,87.285,87.247,6.1854046]
[1773474544829,9.11296358,87.284,87.247,6.1854046]
[1773474545129,10.309,87.289,87.247,6.1854046]
[1773474545130,9.11296358,87.283,87.247,6.1854046]
[1773474545324,9.11296358,87.282,87.247,6.1854046]
[1773474545527,9.11296358,87.281,87.247,6.1854046]
[1773474545727,10.309,87.289,87.247,6.1854046]
[1773474545928,9.11406437,87.288,87.247,6.1854046]
[1773474546231,9.11406437,87.287,87.247,6.1854046]
[1773474546530,9.11406437,87.286,87.247,6.1854046]
[1773474546829,10.309,87.289,87.247,6.1854046]
[1773474546830,9.11406437,87.285,87.247,6.1854046]
[1773474547031,9.11406437,87.284,87.247,6.1854046]
[1773474547227,9.11406437,87.283,87.247,6.1854046]
[1773474547428,9.11406437,87.282,87.247,6.1854046]
[1773474547730,9.11406437,87.281,87.247,6.1854046]
[1773474548029,10.308,87.298,87.247,6.1854046]
[1773474548229,9.11594689,87.297,87.247,6.1854046]
[1773474548430,9.11594689,87.296,87.249,6.17718249]
[1773474548631,9.11594689,87.295,87.249,6.17718249]
[1773474548824,9.11594689,87.294,87.249,6.17718249]
[1773474549031,9.11594689,87.293,87.249,6.17718249]
[1773474549331,9.11594689,87.292,87.249,6.17718249]
[1773474549529,9.11594689,87.291,87.249,6.17718249]
[1773474549728,9.11594689,87.29,87.249,6.17718249]
[1773474549925,9.11594689,87.289,87.249,6.17718249]
[1773474550233,9.11594689,87.288,87.249,6.17718249]
[1773474550432,9.11594689,87.287,87.249,6.17718249]
[1773474550632,10.308,87.298,87.249,6.17718249]
[1773474550934,9.11261569,87.297,87.249,6.17718249]
[1773474551233,9.11261569,87.296,87.249,6.17718249]
[1773474551432,9.11261569,87.295,87.249,6.17718249]
[1773474551629,9.11261569,87.294,87.249,6.17718249]
[1773474551834,9.11261569,87.293,87.249,6.17718249]
[1773474552134,9.11261569,87.292,87.249,6.17718249]
[1773474552333,9.11261569,87.291,87.249,6.17718249]
[1773474552634,9.11261569,87.29,87.249,6.17718249]
[1773474552834,9.11261569,87.289,87.249,6.17718249]
[1773474553134,9.11261569,87.288,87.249,6.17718249]
[1773474553329,10.308,87.298,87.249,6.17718249]
[1773474553538,9.10762939,87.297,87.249,6.17718249]
[1773474553737,9.10762939,87.296,87.249,6.17718249]
[1773474553938,9.10762939,87.295,87.249,6.17718249]
[1773474554140,9.10762939,87.294,87.249,6.17718249]
[1773474554339,9.10762939,87.293,87.252,6.18363512]
[1773474554643,9.10762939,87.292,87.252,6.18363512]
[1773474554842,9.10762939,87.291,87.252,6.18363512]
[1773474555144,9.10762939,87.29,87.254,6.18363512]
[1773474555339,9.10762939,87.289,87.254,6.18363512]
[1773474555542,3.10154588,87.3,87.254,6.18363512]
[1773474555843,9.10640369,87.299,87.256,6.18386112]
[1773474556141,3.10154588,87.3,87.256,6.18386112]
[1773474556142,9.10640369,87.298,87.256,6.18386112]
[1773474556343,9.10640369,87.297,87.256,6.18386112]
[1773474556539,9.10640369,87.296,87.256,6.18386112]
[1773474556738,9.10640369,87.295,87.256,6.18386112]
[1773474557046,9.10640369,87.294,87.256,6.18386112]
[1773474557245,9.10640369,87.293,87.256,6.18386112]
[1773474557542,10.308,87.297,87.256,6.18386112]
[1773474557743,9.10489474,87.296,87.256,6.18386112]
[1773474558038,9.10489474,87.295,87.256,6.18386112]
[1773474558244,9.10489474,87.294,87.256,6.18386112]
[1773474558444,10.308,87.297,87.256,6.18386112]
[1773474558639,9.10405708,87.296,87.256,6.18386112]
[1773474558944,9.10405708,87.295,87.256,6.18386112]
[1773474559137,9.10405708,87.294,87.256,6.18386112]
[1773474559339,10.308,87.297,87.256,6.18386112]
[1773474559536,9.10334873,87.296,87.256,6.18386112]
[1773474559738,10.308,87.297,87.256,6.18386112]
[1773474559739,9.10334873,87.295,87.256,6.18386112]
[1773474559942,9.10334873,87.294,87.256,6.18386112]
[1773474560143,10.308,87.297,87.256,6.18386112]
[1773474560338,9.1027219,87.296,87.256,6.18386112]
[1773474560540,9.1027219,87.295,87.256,6.18386112]
[1773474560744,10.308,87.297,87.256,6.18386112]
[1773474560745,9.1027219,87.294,87.256,6.18386112]
[1773474560945,10.308,87.297,87.256,6.18386112]
[1773474561145,9.10365752,87.296,87.256,6.18386112]
[1773474561346,9.10365752,87.295,87.256,6.18386112]
[1773474561544,9.10365752,87.294,87.256,6.18386112]
[1773474561745,10.308,87.297,87.256,6.18386112]
[1773474561940,10.308,87.295,87.256,6.18386112]
[1773474562247,9.103125,87.294,87.256,6.18386112]
[1773474562442,10.308,87.295,87.256,6.18386112]
[1773474562747,9.10267398,87.294,87.256,6.18386112]
[1773474562943,10.308,87.295,87.256,6.18386112]
[1773474565949,3.10154588,87.29,87.243,6.19108832]
[1773474566349,9.10061021,87.289,87.243,6.19108832]
[1773474566548,3.10154588,87.29,87.243,6.19108832]
[1773474566750,9.10122313,87.289,87.243,6.19108832]
[1773474566950,3.10154588,87.29,87.243,6.19108832]
[1773474567249,9.10122313,87.289,87.243,6.19108832]
[1773474567445,3.10154588,87.29,87.243,6.19108832]
[1773474567646,3.10154588,87.29,87.236,46.395]
[1773474567647,9.10141918,87.289,87.245,6.18545967]
[1773474567847,3.10154588,87.29,87.245,6.18545967]
[1773474568048,9.10142249,87.289,87.245,6.18545967]
[1773474568346,3.10154588,87.29,87.245,6.18545967]
[1773474568545,9.1016655,87.289,87.245,6.18545967]
[1773474568741,3.10154588,87.29,87.245,6.18545967]
[1773474569046,9.1016655,87.289,87.245,6.18545967]
[1773474569246,9.10193828,87.288,87.245,6.18545967]
[1773474569447,3.10154588,87.29,87.245,6.18545967]
[1773474569753,9.10193828,87.289,87.245,6.18545967]
[1773474569952,9.10193828,87.288,87.245,6.18545967]
[1773474570252,10.309,87.288,87.245,6.18545967]
[1773474578159,9.08653892,87.287,87.245,6.18545967]
[1773474578355,10.309,87.288,87.245,6.18545967]
[1773474578550,9.08671354,87.287,87.245,6.18545967]
[1773474578753,10.309,87.288,87.245,6.18545967]
[1773474578957,9.08671354,87.287,87.245,6.18545967]
[1773474579257,10.309,87.288,87.245,6.18545967]
[1773474579456,9.08731839,87.287,87.245,6.18545967]
[1773474579656,10.309,87.288,87.245,6.18545967]
[1773474579857,9.08731891,87.287,87.245,6.18545967]
[1773474580060,10.309,87.288,87.245,6.18545967]
[1773474580256,9.08778055,87.287,87.245,6.18545967]
[1773474580457,10.309,87.288,87.245,6.18545967]
[1773474580756,9.08793778,87.287,87.245,6.18545967]
[1773474580956,10.309,87.288,87.245,6.18545967]
[1773474581157,9.08793653,87.287,87.245,6.18545967]
[1773474581359,10.309,87.288,87.245,6.18545967]
[1773474581553,9.08851492,87.287,87.245,6.18545967]
[1773474581754,10.309,87.288,87.245,6.18545967]
[1773474581960,9.08851492,87.287,87.245,6.18545967]
[1773474582259,9.0891122,87.286,87.245,6.18545967]
[1773474582462,10.309,87.288,87.245,6.18545967]
[1773474582764,9.08924925,87.287,87.245,6.18545967]
[1773474582958,9.08924925,87.286,87.245,6.18545967]
[1773474583156,3.10154588,87.29,87.245,6.18545967]
[1773474583360,9.08986689,87.289,87.245,6.18545967]
[1773474583563,9.08986689,87.288,87.245,6.18545967]
[1773474583758,9.08986689,87.287,87.245,6.18545967]
[1773474584064,3.10090849,87.29,87.245,6.18545967]
[1773474584264,9.09052432,87.289,87.245,6.18545967]
[1773474584464,9.09052432,87.288,87.245,6.18545967]
[1773474584664,9.09052432,87.287,87.245,6.18545967]
[1773474584866,3.10090849,87.29,87.245,6.18545967]
[1773474585066,9.09064852,87.289,87.245,6.18545967]
[1773474585364,9.09064852,87.288,87.245,6.18545967]
[1773474585564,9.09064852,87.287,87.245,6.18545967]
[1773474585764,9.09064852,87.286,87.245,6.18545967]
[1773474585967,3.10090849,87.29,87.245,6.18545967]
[1773474586263,9.09076886,87.289,87.245,6.18545967]
[1773474586464,9.09076886,87.288,87.245,6.18545967]
[1773474586665,9.09076886,87.287,87.245,6.18545967]
[1773474586866,9.09076886,87.286,87.245,6.18545967]
[1773474587160,3.10090849,87.29,87.245,6.18545967]
[1773474587366,9.09210259,87.289,87.247,6.26177077]
[1773474587667,9.09210259,87.288,87.247,6.26177077]
[1773474587866,9.09210259,87.287,87.247,6.26177077]
[1773474588067,9.09210259,87.286,87.247,6.26177077]
[1773474588263,3.10090849,87.29,87.247,6.26177077]
[1773474588460,9.0922679,87.289,87.247,6.26177077]
[1773474588658,9.0922679,87.288,87.247,6.26177077]
[1773474588863,9.0922679,87.287,87.247,6.26177077]
[1773474589068,9.0922679,87.286,87.247,6.26177077]
[1773474589268,3.10090849,87.29,87.247,6.26177077]
[1773474589470,9.09253324,87.289,87.247,6.26177077]
[1773474589765,9.09253324,87.288,87.247,6.26177077]
[1773474589969,9.09253324,87.287,87.247,6.26177077]
[1773474590171,9.09253324,87.286,87.247,6.26177077]
[1773474590370,3.10090849,87.29,87.247,6.26177077]
[1773474590570,9.0928133,87.289,87.247,6.26177077]
[1773474590772,9.0928133,87.288,87.247,6.26177077]
[1773474591071,9.0928133,87.287,87.247,6.26177077]
[1773474591271,9.0928133,87.286,87.247,6.26177077]
[1773474591570,9.0928133,87.285,87.247,6.26177077]
[1773474591772,3.10090849,87.29,87.247,6.26177077]
[1773474592071,9.09310975,87.289,87.247,6.26177077]
[1773474592270,9.09310975,87.288,87.247,6.26177077]
[1773474592472,9.09310975,87.287,87.247,6.26177077]
[1773474592672,9.09310975,87.286,87.247,6.26177077]
[1773474592971,3.10090849,87.29,87.247,6.26177077]
[1773474592972,9.09310975,87.285,87.247,6.26177077]
[1773474593171,3.10090849,87.29,87.247,6.26177077]
[1773474593367,9.09370401,87.289,87.247,6.26177077]
[1773474593571,9.09370401,87.288,87.247,6.26177077]
[1773474593872,9.09370401,87.287,87.247,6.26177077]
[1773474594071,9.09370401,87.286,87.249,6.22256837]
[1773474594271,9.09370401,87.285,87.249,6.22256837]
[1773474594473,3.10090849,87.29,87.249,6.22256837]
[1773474594667,9.09358841,87.289,87.249,6.22256837]
[1773474594869,9.09358841,87.288,87.249,6.22256837]
[1773474595077,9.09358841,87.287,87.249,6.22256837]
[1773474595270,9.09358841,87.286,87.249,6.22256837]
[1773474595470,10.71177198,87.301,87.252,6.22621117]
[1773474595471,9.09358841,87.285,87.252,6.22621117]
[1773474595770,9.09358841,87.284,87.252,6.22621117]
[1773474596075,9.09358841,87.283,87.252,6.22621117]
[1773474596271,9.09358841,87.282,87.252,6.22621117]
[1773474596471,9.09358841,87.281,87.252,6.22621117]
[1773474596775,3.10090849,87.29,87.252,6.22621117]
[1773474596978,3.10090849,87.28,87.242,36.08]
[1773474597274,9.09302929,87.279,87.242,36.08]
[1773474597475,9.09302929,87.278,87.242,36.08]
[1773474597773,9.09302929,87.277,87.242,42.33575746]
[1773474597976,9.09302929,87.276,87.243,6.25575746]
[1773474598177,3.10090849,87.28,87.243,6.25575746]
[1773474598377,9.09143184,87.279,87.243,6.25575746]
[1773474598672,9.09143184,87.278,87.243,6.25575746]
[1773474598875,9.09143184,87.277,87.243,6.25575746]
[1773474599067,3.10090849,87.27,87.233,6.25338243]
[1773474599273,9.0914319,87.269,87.233,6.25338243]
[1773474599474,9.0914319,87.268,87.233,6.25338243]
[1773474599674,9.0914319,87.267,87.233,6.25338243]
[1773474599978,9.0914319,87.266,87.233,6.25338243]
[1773474600178,3.10090849,87.28,87.233,6.25338243]
[1773474600478,9.08765656,87.279,87.233,6.25338243]
[1773474600778,9.08765656,87.278,87.233,6.25338243]
[1773474601076,9.08765656,87.277,87.233,6.25338243]
[1773474601377,9.08765656,87.276,87.233,6.25338243]
[1773474601577,9.08765656,87.275,87.233,6.25338243]
[1773474601877,9.08765656,87.274,87.233,6.25338243]
[1773474602078,9.08765656,87.273,87.233,6.25338243]
[1773474602378,9.08765656,87.272,87.233,6.25338243]
[1773474602678,9.08765656,87.271,87.233,6.25338243]
[1773474602879,9.08765656,87.27,87.233,6.25338243]
[1773474603076,3.10090849,87.28,87.233,6.25338243]
[1773474603281,9.06134882,87.279,87.233,6.25338243]
[1773474603476,3.10090849,87.29,87.233,6.25338243]
[1773474603675,9.06070246,87.289,87.233,6.25338243]
[1773474603979,9.06070246,87.288,87.233,6.25338243]
[1773474604178,3.10090849,87.29,87.233,6.25338243]
[1773474604179,9.06070246,87.287,87.233,6.25338243]
[1773474604474,3.10090849,87.29,87.233,6.25338243]
[1773474604475,9.06070246,87.286,87.233,6.25338243]
[1773474604677,9.06070246,87.285,87.237,6.21337812]
[1773474604878,9.06070246,87.284,87.237,6.21337812]
[1773474605180,9.06070246,87.283,87.237,6.21337812]
[1773474605374,9.06070246,87.282,87.237,6.21337812]
[1773474605575,9.06070246,87.281,87.239,6.19732024]
[1773474605776,9.06070246,87.28,87.239,6.19732024]
[1773474605976,9.06070246,87.279,87.239,6.19732024]
[1773474606178,3.10090849,87.29,87.239,6.19732024]
[1773474606480,9.06010114,87.289,87.239,6.19732024]
[1773474606674,9.06010114,87.288,87.239,6.19732024]
[1773474606877,9.06010114,87.287,87.239,6.19732024]
[1773474607078,9.06010114,87.286,87.239,6.19732024]
[1773474607276,9.06010114,87.285,87.239,6.19732024]
[1773474607482,9.06010114,87.284,87.239,6.19732024]
[1773474607680,3.10090849,87.29,87.225,36.08]
[1773474607681,9.06010114,87.283,87.241,6.19879765]
[1773474607882,10.308,87.293,87.241,6.19879765]
[1773474608188,9.05956104,87.292,87.241,6.19879765]